Cogmind - Beta 10.2 @@@ ROGUE MODE // 2020.11.18 @ 16:11:48 // Halloween2020/ForbiddenLore Player: Ty Piggbottom Result: Self-destructed Performance ------------- Evolutions (1) 500 Regions Visited (6) 1200 Robots Destroyed (138) 690 Value Destroyed (2424) 2424 Prototype IDs (30) 600 Alien Tech Used (0) 0 Bonus (388) 388 TOTAL SCORE: 5802 Bonus ------- High Alert Combat Kills 143 Aligned with FarCom 300 Friendly Fire -55 Cogmind --------- Core Integrity 106/400 Matter 256/300 Energy 125/125 System Corruption 0% Temperature Cool (84) Movement Walking (90) Location -8/Mines Parts ------- > --- POWER (1) -------- Light Ion Engine > --- PROPULSION (2) --- Potential Leg Potential Leg > --- UTILITY (3) ------ High-capacity Storage Unit Medium Armor Plating Hacking Suite > --- WEAPON (3) ------- Particle Gun > --- INVENTORY (12) --- Improved Aluminum Leg Carbon-fiber Leg Carbon-fiber Leg Hacking Suite High-powered Tractor Beam Trap Extractor Improved EM Shotgun AWS/Thermal High-powered Shotgun Field Lobotomy Kit Mining Laser Peak State ------------ > --- POWER ------------ Light Ion Engine > --- PROPULSION ------- Potential Leg Potential Leg > --- UTILITY ---------- High-capacity Storage Unit Medium Armor Plating Hacking Suite > --- WEAPON ----------- Improved EM Shotgun High-powered Shotgun Rocket Launcher > --- INVENTORY -------- Carbon-fiber Leg Carbon-fiber Leg Carbon-fiber Leg Wheel Wheel Hacking Suite High-powered Tractor Beam Trap Extractor AWS/Thermal Field Lobotomy Kit Mining Laser [Rating: 39] Favorites ----------- Power Light Ion Engine Engine Light Ion Engine Power Core Light Nuclear Core Propulsion Wheel Treads Light Treads Leg Carbon-fiber Leg Wheel Wheel Utility Medium Storage Unit Device High-powered Tractor Beam Storage Medium Storage Unit Processor Targeting Computer Hackware Hacking Suite Protection Medium Armor Plating Weapon High-powered Shotgun Energy Gun Improved EM Shotgun Energy Cannon Light EM Pulse Cannon Ballistic Gun High-powered Shotgun Launcher Rocket Launcher Special Weapon Mining Laser Build | -11 -10 -10 -9 -9 -9 -8 ------- Run | Scr Mat Min Mat Min Exi Min Slots Evolved 2 | . . . 2 . . . Power . | . . . . . . . Propulsion . | . . . . . . . Utility 1 | . . . 1 . . . Weapon 1 | . . . 1 . . . Parts Attached 149 | 7 38 26 61 10 5 2 Power 17 | 1 5 3 6 2 . . Engine 10 | 1 1 2 4 2 . . Core 7 | . 4 1 2 . . . Reactor . | . . . . . . . Propulsion 40 | 2 15 5 12 4 2 . Treads 6 | . 5 . 1 . . . Leg 16 | . 1 2 9 2 2 . Wheel 18 | 2 9 3 2 2 . . Hover . | . . . . . . . Flight . | . . . . . . . Utility 31 | 1 6 5 17 2 . . Device 5 | . . 1 4 . . . Storage 6 | 1 1 1 2 1 . . Processor 5 | . 1 . 4 . . . Hackware 1 | . . . 1 . . . Protection 14 | . 4 3 6 1 . . Artifact . | . . . . . . . Weapon 61 | 3 12 13 26 2 3 2 Energy Gun 26 | 1 7 3 11 1 1 2 Energy Cannon 5 | . 2 3 . . . . Ballistic Gun 13 | 2 1 3 7 . . . Ballistic Cannon . | . . . . . . . Launcher 13 | . 2 3 6 . 2 . Special Weapon 4 | . . 1 2 1 . . Impact Weapon . | . . . . . . . Slashing Weapon . | . . . . . . . Piercing Weapon . | . . . . . . . Special Melee Weapon . | . . . . . . . Unidentified Prototypes 3 | . . . 3 . . . Parts Lost 16 | . 2 3 7 2 . 2 Power 2 | . . . 2 . . . Propulsion 4 | . 1 . 2 1 . . Utility 3 | . . 1 2 . . . Weapon 7 | . 1 2 1 1 . 2 Highest Loss Streak 4 | . 1 2 4 1 . 2 Average Slot Usage (%) 98 | . 97 99 98 99 98 97 Engine 8 | . 1 7 9 11 11 11 Core 3 | . 12 6 . . . . Treads 1 | . 9 . . . . . Leg 12 | . 3 5 18 14 11 22 Wheel 9 | . 14 22 3 7 9 . Device 1 | . . . 3 . . . Storage 12 | . 14 14 11 11 11 11 Processor 4 | . 3 . 10 . . . Hackware 4 | . . . 4 11 11 11 Protection 8 | . 8 12 3 10 11 11 Energy Gun 9 | . 12 11 6 11 10 14 Energy Cannon 1 | . 4 4 . . . . Ballistic Gun 14 | . 8 4 21 16 11 6 Launcher 2 | . 2 5 4 . . 9 Special Weapon 2 | . . 1 . 5 10 . Naked Turns . | . . . . . . . Heaviest Build 55 | 10 31 48 55 49 52 52 Greatest Support 60 | 26 26 26 30 30 60 60 Greatest Overweight (x) 16 | . 10 3 3 2 16 . Average Overweight (x) . | . 1 1 . . . . Largest Inventory Capacity 12 | 6 10 12 12 12 12 12 Average Capacity 9 | 5 8 11 8 8 12 12 Most Carried 12 | 3 10 12 12 8 12 12 Average Carried 8 | 2 6 10 8 7 9 11 Final Capacity 12 | 6 10 12 8 12 12 12 Final Carried 12 | 3 9 12 8 7 12 12 Class Distribution -------------------- 48% | Mutant 18% | Scavenger-Mutant 15% | Gunner 13% | Tank 3% | Scavenger-Gunner Dominant Class ---------------- Mutant | -10/Materials Scavenger-Mutant | -10/Mines Gunner | -9/Materials Tank | -9/Mines Mutant | -9/Exiles Scavenger-Skirmisher | -8/Mines Resources | -11 -10 -10 -9 -9 -9 -8 ----------- Run | Scr Mat Min Mat Min Exi Min Matter Collected 3521 | 288 579 407 1581 576 . 90 Remotely 854 | . . . 854 . . . Salvage Created 4617 | 105 864 654 2004 841 . 149 Parts 273 | 2 49 28 132 52 . 10 Haulers Intercepted 7 | . 2 . 5 . . . Recyclers Shooed 12 | . 5 2 1 4 . . Parts Field Recycled . | . . . . . . . Retrieved Matter . | . . . . . . . Parts Self-Destructed . | . . . . . . . Prevented . | . . . . . . . Kills | -11 -10 -10 -9 -9 -9 -8 ------- Run | Scr Mat Min Mat Min Exi Min Combat Hostiles Destroyed 78 | . 11 5 41 15 . 6 Guns 50 | . 11 . 23 15 . 1 Cannons 2 | . . 2 . . . . AOE 26 | . . 3 18 . . 5 Classes Destroyed 13 | 2 6 1 2 1 . 1 Worker 13 | . 3 1 7 1 . 1 Builder 5 | . 1 . 3 1 . . Tunneler 2 | 1 . . 1 . . . Hauler 7 | . 2 . 5 . . . Recycler 23 | 1 4 7 4 7 . . Operator 2 | . . . 1 . . 1 Watcher 8 | . 3 . 5 . . . Swarmer 37 | . 6 3 13 12 . 3 Grunt 27 | . 5 . 18 2 . 2 Brawler 1 | . . . . 1 . . Duelist 1 | . . . . . . 1 Protector 1 | . . . 1 . . . Sentry 11 | . . 2 9 . . . Best Kill Streak 7 | 1 6 3 7 5 . 4 Combat Bots Only 5 | . 3 3 5 4 . 3 Max Kills in Single Turn 4 | 1 2 1 4 2 . 3 Gunslinging 1 | . . . 1 . . . Exploded 4 | . . 1 4 . . 3 Melee . | . . . . . . . Uniques/NPCs Destroyed . | . . . . . . . Combat | -11 -10 -10 -9 -9 -9 -8 -------- Run | Scr Mat Min Mat Min Exi Min Damage Taken 3122 | . 616 386 1455 464 . 201 Core 475 | . 134 47 211 47 . 36 Absorbed by Shields . | . . . . . . . Core Remaining (%) 63 | 100 . 27 . . . . Volleys Fired 337 | 6 69 42 151 61 . 8 Largest 3 | 2 2 2 3 3 . 3 Hottest 163 | 60 112 116 106 100 . 163 Shots Fired 762 | 12 130 73 385 145 . 17 Gun 679 | 12 121 46 351 136 . 13 Cannon 22 | . 7 15 . . . . Launcher 47 | . 2 12 29 . . 4 Special 14 | . . . 5 9 . . Kinetic 427 | 6 63 14 254 86 . 4 Thermal 133 | 6 52 39 22 9 . 5 Explosive 47 | . 2 12 29 . . 4 Electromagnetic 155 | . 13 8 80 50 . 4 Robot Hit Streak 18 | 8 6 11 18 7 . 2 Robot Miss Streak 9 | 2 5 4 7 9 . 2 Penetration Max . | . . . . . . . Secondary Targets 9 | . 2 . 4 3 . . Max Gunslinging Chain 1 | . 1 . 1 1 . . Shots Hit Robots 425 | 9 70 42 223 77 . 4 Core Hits 204 | 3 34 21 97 35 . 14 Critical Hits 3 | . . . 2 1 . . Critical Kills 1 | . . . 1 . . . Critical Parts Destroyed 2 | . . . 1 1 . . Melee Attacks . | . . . . . . . Impact . | . . . . . . . Slashing . | . . . . . . . Piercing . | . . . . . . . Sneak Attacks . | . . . . . . . Combat Hostiles . | . . . . . . . Follow-up Attacks . | . . . . . . . Damage Inflicted 8094 | 101 1051 1022 4512 929 . 479 Guns 5162 | 101 896 349 2913 845 . 58 Cannons 353 | . 115 238 . . . . Explosions 2579 | . 40 435 1599 84 . 421 Melee . | . . . . . . . Ramming . | . . . . . . . Kinetic 2887 | 46 342 135 1897 467 . . Thermal 1449 | 55 493 299 453 84 . 65 Explosive 2175 | . 40 435 1326 . . 374 Electromagnetic 1583 | . 176 153 836 378 . 40 Impact . | . . . . . . . Slashing . | . . . . . . . Piercing . | . . . . . . . Highest Corruption . | . . . . . . . Average Corruption . | . . . . . . . Corruption Purged . | . . . . . . . Overload Shots . | . . . . . . . Overflow Damage 150 | . . 29 71 19 . 31 Projectiles . | . . . . . . . Explosions 150 | . . 29 71 19 . 31 Melee . | . . . . . . . Knockbacks . | . . . . . . . Impact . | . . . . . . . Kinetic . | . . . . . . . Secondary . | . . . . . . . Self-Inflicted Damage 384 | . 39 . 219 39 . 87 Shots 13 | . 2 . 7 1 . 3 Rammed . | . . . . . . . Targets Rammed . | . . . . . . . Kicked . | . . . . . . . Crushed . | . . . . . . . Highest Temperature 406 | . 214 406 228 211 . 138 Average Temperature 59 | . 64 104 45 48 . 62 Received Heat Transfer 618 | . 195 63 339 12 . 9 Effects 5 | . 2 2 1 . . . Energy Bleed 3 | . 1 1 1 . . . Interference 2 | . 1 1 . . . . Siege Activations . | . . . . . . . Robots Corrupted . | . . . . . . . Combat Hostiles . | . . . . . . . Parts Fried 5 | . 1 1 2 1 . . Impact Corruptions . | . . . . . . . Robots Melted . | . . . . . . . Combat Hostiles . | . . . . . . . Parts Melted 3 | . 2 . . 1 . . Heat Transferred 2899 | 125 1140 740 657 150 . 87 Parts Sabotaged . | . . . . . . . Parts Stolen . | . . . . . . . Parts Stripped . | . . . . . . . Power Chain Reactions 8 | . . . 5 2 . 1 Missiles Intercepted . | . . . . . . . Alert | -11 -10 -10 -9 -9 -9 -8 ------- Run | Scr Mat Min Mat Min Exi Min Peak Influence 728 | 10 257 89 728 375 . 183 Initial 265 | . 6 4 5 265 . . Average 238 | 3 104 37 417 256 . 116 Maximum Alert Level 3 | . 1 . 3 1 . . Low Security (%) 48 | 100 84 100 18 22 . 100 Level 1 32 | . 15 . 24 77 . . Level 2 14 | . . . 43 . . . Level 3 4 | . . . 13 . . . Level 4 . | . . . . . . . Level 5 . | . . . . . . . High Security . | . . . . . . . Max Security . | . . . . . . . Squads Dispatched 7 | . 2 . 5 . . . Investigation 3 | . 2 . 1 . . . Extermination . | . . . . . . . Reinforcement 1 | . . . 1 . . . Assault 3 | . . . 3 . . . Garrison . | . . . . . . . Intercept . | . . . . . . . Construction Impeded 1 | . . . 1 . . . Haulers Reinforced . | . . . . . . . Stealth | -11 -10 -10 -9 -9 -9 -8 --------- Run | Scr Mat Min Mat Min Exi Min Distress Signals 5 | . . . 5 . . . Communications Jammed . | . . . . . . . Distress Signals . | . . . . . . . Times Spotted 107 | . 19 7 56 19 . 6 Peak Tracking Total 14 | . 4 14 7 7 . 3 Tactical Retreats 9 | . 1 1 5 2 . . Traps | -11 -10 -10 -9 -9 -9 -8 ------- Run | Scr Mat Min Mat Min Exi Min Traps Triggered 6 | . 5 . 1 . . . Indirectly . | . . . . . . . Trap Hack Attempts . | . . . . . . . Triggered . | . . . . . . . Disarmed . | . . . . . . . Reprogrammed . | . . . . . . . Reused . | . . . . . . . Traps Extracted . | . . . . . . . Installed . | . . . . . . . Triggered . | . . . . . . . Machines | -11 -10 -10 -9 -9 -9 -8 ---------- Run | Scr Mat Min Mat Min Exi Min Machines Disabled 16 | . 2 1 12 1 . . Max in Single Turn 3 | . 1 1 3 1 . . Machines Sabotaged . | . . . . . . . Garrisons Compromised . | . . . . . . . Overloaded Fab Kills . | . . . . . . . Fab Network Shutdowns . | . . . . . . . Hacking | -11 -10 -10 -9 -9 -9 -8 --------- Run | Scr Mat Min Mat Min Exi Min Machines Accessed 27 | . 11 . 15 . 1 . Terminals 19 | . 8 . 11 . . . Fabricators . | . . . . . . . Repair Stations 2 | . 1 . 1 . . . Recycling Units 4 | . 2 . 2 . . . Scanalyzers 1 | . . . 1 . . . Garrison Access . | . . . . . . . Total Hacks 80 | . 35 . 44 . 1 . Successful 55 | . 26 . 28 . 1 . Failed 25 | . 9 . 16 . . . Catastrophic . | . . . . . . . Database Lockouts . | . . . . . . . Manual 63 | . 24 . 34 . 5 . Terminals 55 | . 20 . 35 . . . Fabricators . | . . . . . . . Repair Stations 8 | . 6 . 2 . . . Recycling Units 14 | . 9 . 5 . . . Scanalyzers 2 | . . . 2 . . . Garrison Access . | . . . . . . . Terminal Hacks 14 | . 4 . 9 . 1 . Robot Analysis 4 | . . . 4 . . . Prototype ID Bank 2 | . 1 . 1 . . . Terminal Index 2 | . 1 . 1 . . . Alert Level 1 | . . . 1 . . . Unreport Threat 1 | . . . 1 . . . Locate Traps 1 | . 1 . . . . . Zone Layout 2 | . 1 . 1 . . . EX-Prototype ID Bank 1 | . . . . . 1 . Fabricator Hacks . | . . . . . . . Repair Station Hacks 8 | . 6 . 2 . . . Scan Component 4 | . 3 . 1 . . . Repair 4 | . 3 . 1 . . . Recycling Unit Hacks 5 | . 3 . 2 . . . Report Inventory 5 | . 3 . 2 . . . Scanalyzer 2 | . . . 2 . . . Insert Component 1 | . . . 1 . . . Analyze 1 | . . . 1 . . . Garrison Access Hacks . | . . . . . . . Unauthorized Hacks 26 | . 13 . 13 . . . Terminals 19 | . 9 . 10 . . . Assimilate 5 | . 3 . 2 . . . Botnet 12 | . 5 . 7 . . . Operators 2 | . 1 . 1 . . . Fabricators . | . . . . . . . Repair Stations . | . . . . . . . Recycling Units 7 | . 4 . 3 . . . Reject 4 | . 2 . 2 . . . Mask 3 | . 2 . 1 . . . Scanalyzers . | . . . . . . . Garrison Access . | . . . . . . . Data Cores Recovered 1 | . . . 1 . . . Used 1 | . . . 1 . . . Hacking Detections 23 | . 11 . 12 . . . Full Trace Events . | . . . . . . . Feedback Events . | . . . . . . . Feedback Blocked . | . . . . . . . Robot Schematics Acquired . | . . . . . . . Robots Built . | . . . . . . . Matter . | . . . . . . . Time . | . . . . . . . Total Robot Build Rating . | . . . . . . . Part Schematics Acquired 1 | . . . 1 . . . Parts Built . | . . . . . . . Matter . | . . . . . . . Time . | . . . . . . . Total Part Build Rating . | . . . . . . . Parts Repaired 4 | . 3 . 1 . . . Time 122 | . 90 . 32 . . . Parts Recycled . | . . . . . . . Recycled Matter . | . . . . . . . Retrieved Matter . | . . . . . . . Retrieved Components . | . . . . . . . Parts Scanalyzed 1 | . . . 1 . . . Part Schematics Acquired 1 | . . . 1 . . . Parts Damaged . | . . . . . . . Bothacking | -11 -10 -10 -9 -9 -9 -8 ------------ Run | Scr Mat Min Mat Min Exi Min Used RIF Installer . | . . . . . . . Robots Hacked . | . . . . . . . Non-combat . | . . . . . . . Combat . | . . . . . . . Robot Hacks Applied . | . . . . . . . Relay Couplers Released . | . . . . . . . Robots Rewired . | . . . . . . . Allies Hacked . | . . . . . . . Hacks Repelled . | . . . . . . . Allies | -11 -10 -10 -9 -9 -9 -8 -------- Run | Scr Mat Min Mat Min Exi Min Total Allies 3 | . 2 . 1 . . . Largest Group 3 | . 2 2 3 2 1 . Highest-Rated Group 30 | . 20 20 30 20 10 . Highest-Rated Ally 10 | . 10 10 10 10 10 . Total Orders 13 | . 4 2 5 2 . . STAY 6 | . 2 1 2 1 . . FOLLOW 7 | . 2 1 3 1 . . Ally Attacks . | . . . . . . . Total Damage . | . . . . . . . Kills . | . . . . . . . Allies Corrupted . | . . . . . . . Allies Melted . | . . . . . . . Intel | -11 -10 -10 -9 -9 -9 -8 ------- Run | Scr Mat Min Mat Min Exi Min Robot Analysis Total 4 | . . . 4 . . . Derelict Logs Recovered 3 | . . 1 . 2 . . Drone Launches . | . . . . . . . Drone Recoveries . | . . . . . . . Exploration | -11 -10 -10 -9 -9 -9 -8 ------------- Run | Scr Mat Min Mat Min Exi Min Turns Passed 7631 | 71 1573 1169 2428 2056 247 87 Spaces Moved 5421 | 43 983 957 1447 1688 241 62 Core 3 | 1 1 . . . 1 . Treads 224 | . 224 . . . . . Legs 2468 | . . 47 1221 1006 132 62 Wheels 2726 | 42 758 910 226 682 108 . Hover . | . . . . . . . Flight . | . . . . . . . Fastest Speed 45 | 50 80 90 90 90 90 45 Average Speed 110 | 91 115 101 118 107 97 88 Slowest Speed 850 | 100 550 150 150 150 850 90 Overloaded Moves 2 | . . . . . . 2 Propulsion Burnouts . | . . . . . . . Robots Hopped . | . . . . . . . Cave-ins Triggered . | . . . . . . . Exploration Rate (%) 66 | 4 95 99 90 99 61 19 Regions Visited 6 Branch Regions 4 Pre-discovered Areas 1 | . . . . 1 . . Known Exits Taken 3 | . 1 1 1 . . . Unknown Exits Taken 3 | 1 . . . 1 1 . Scrap Searched 4 | . . 2 . 2 . . Spaces Dug 100 | . 13 40 15 9 . 23 Terrain Destroyed 451 | . 13 95 282 13 . 48 Melee . | . . . . . . . Projectile 14 | . . . 5 9 . . AOE 437 | . 13 95 277 4 . 48 Terrain Rammed . | . . . . . . . Walls Destroyed . | . . . . . . . Machines Disabled . | . . . . . . . Actions | -11 -10 -10 -9 -9 -9 -8 --------- Run | Scr Mat Min Mat Min Exi Min Total 6378 | 59 1293 1073 1843 1781 251 78 Wait 332 | . 163 35 116 18 . . Move 5415 | 42 982 956 1446 1687 240 62 Hop . | . . . . . . . Pick Up 59 | 3 15 5 29 2 2 3 Fast Attach 37 | 6 13 5 8 1 4 . Attach 18 | 1 4 2 10 1 . . Detach 17 | 1 6 3 5 . 2 . Swap 94 | . 21 19 43 8 1 2 Drop 69 | . 20 6 35 3 2 3 Fire 337 | 6 69 42 151 61 . 8 Melee . | . . . . . . . Ram . | . . . . . . . Kick . | . . . . . . . Crush . | . . . . . . . Escape Stasis . | . . . . . . . Rewire . | . . . . . . . Trap . | . . . . . . . Miscellaneous . | . . . . . . . Route ------- -11/Scrapyard -10/Materials (discovered 5 exits: *Mat x3 / *Min x2) -10/Mines (discovered 2 exits: *Mat x2) -9/Materials (discovered 6 exits: *Mat x3 / *Min x2 / *Sto) -9/Mines (discovered 4 exits: *Mat x2 / *Exi / [*Zio]) -9/Exiles -8/Mines History --------- Turn | Location | Event 21 | -11/Scrapyard | Discovered new exit (range 15) 72 | -11/Scrapyard | Entered Materials 165 | -10/Materials | Discovered new exit (range 12) 321 | -10/Materials | Build established: Mutant 367 | -10/Materials | Discovered new exit (range 4) 396 | -10/Materials | Core integrity fell below 50% 636 | -10/Materials | Discovered new exit (range 11) 880 | -10/Materials | Discovered new exit (range 9) 1176 | -10/Materials | Discovered new exit (range 15) 1245 | -10/Materials | Identified exit to Materials 1349 | -10/Materials | Repaired Grenade Launcher 1389 | -10/Materials | Repaired Lgt. Nuclear Core 1416 | -10/Materials | Repaired Wheel 1514 | -10/Materials | Identified exit to Mines 1645 | -10/Materials | Entered Mines 1645 | -10/Mines | Accompanied by 2 allies 1723 | -10/Mines | Assembled infested the area 2016 | -10/Mines | Discovered exit to Materials (range 8) 2396 | -10/Mines | Discovered exit to Materials (range 9) 2516 | -10/Mines | Build established: Scavenger-Mutant 2814 | -10/Mines | Entered Materials 2814 | -9/Materials | Accompanied by 2 allies 2814 | -9/Materials | Evolved 2 slots: Utility x1, Weapon x1 2815 | -9/Materials | Identified exit to Storage 3234 | -9/Materials | Discovered new exit (range 13) 3421 | -9/Materials | Build established: Gunner 3426 | -9/Materials | Discovered new exit (range 15) 3565 | -9/Materials | Lost 4 parts (2n1u1w) 4079 | -9/Materials | Discovered new exit (range 12) 4512 | -9/Materials | Discovered new exit (range 15) 4643 | -9/Materials | Identified exit to Materials 4710 | -9/Materials | Identified exit to Mines 4814 | -9/Materials | First assault squad dispatched 4858 | -9/Materials | Discovered exit to Materials (range 11) 4882 | -9/Materials | Core integrity fell below 50% 5063 | -9/Materials | Repaired Med. Armor Plating 5241 | -9/Materials | Build established: Mutant 5242 | -9/Materials | Entered Mines 5242 | -9/Mines | Accompanied by 2 allies 5274 | -9/Mines | Met a Derelict bent on vengeance 5562 | -9/Mines | Discovered exit to Materials (range 5) 5563 | -9/Mines | A Derelict revealed a hidden shortcut to a safe place 5571 | -9/Mines | Learned Materials emergency access door positions 5625 | -9/Mines | Build established: Tank 5849 | -9/Mines | Deemed a non-threat by the Exiles lab entrance 5849 | -9/Mines | Discovered new exit (range 5) 6136 | -9/Mines | Learned location of Zion (-7) 6202 | -9/Mines | Discovered exit to Materials (range 2) 6532 | -9/Mines | Build established: Mutant 6921 | -9/Mines | Build established: Scavenger-Mutant 7298 | -9/Mines | Entered Exiles 7298 | -9/Exiles | Accompanied by 1 ally 7322 | -9/Exiles | Met 8R-AWN 7340 | -9/Exiles | Met EX-HEX 7369 | -9/Exiles | Met EX-BIN 7399 | -9/Exiles | Opened EX-Vault 7416 | -9/Exiles | Found Potential Leg 7419 | -9/Exiles | Found Potential Leg 7421 | -9/Exiles | Found Field Lobotomy Kit 7427 | -9/Exiles | Found AWS/Thermal 7450 | -9/Exiles | Warned to stay clear of 0b10 Research branches 7461 | -9/Exiles | Aligned with FarCom system 7462 | -9/Exiles | Given EX-Vault access code 7489 | -9/Exiles | Met EX-DEC 7522 | -9/Exiles | Discovered new exit (range 10) 7545 | -9/Exiles | Stole three prototypes: Potential Leg, Field Lobotomy Kit, AWS/Thermal 7545 | -9/Exiles | Entered Mines 7545 | -8/Mines | Accompanied by 1 ally 7632 | -8/Mines | Self-destructed Last Messages --------------- 07560_ Acquired 35 matter. 07563_ Acquired 2 matter. 07564_ Acquired 32 matter. 07565_ Dropped Carbon-fiber Leg. 07568_ Acquired Particle Gun. 07571_ The unstable cave ceiling collapses. 07578_ Dropped Wheel. 07579_ Acquired Imp. Aluminum Leg. 07587_ Acquired Particle Gun. 07599_ K-01 Serf destroyed. 07608_ S-10 Pest destroyed. 07608_ K-01 Serf collects debris. 07615_ Acquired 21 matter. 07617_ K-01 Serf collects debris. 07628_ Particle Gun destroyed. 07628_ Destroyed Particle Gun. 07628_ Rocket Launcher destroyed. 07628_ Destroyed Rocket Launcher. 07629_ The unstable cave ceiling collapses. [Achievement: Achiever] Map ----- +----------------------------------------------------+ | ?????????????# !#???????????????????????? | | ?????????????# = ##??????????????????????? | | ?????????????# # #??????????????????????? | | ?????????????## ###??????????????????????? | | ?????????????## ###????????????????????????? | | ??????######## ###?????????????????????????? | | ??????# #??????????????????????????? | | ??????# #????????#?????????????????? | | ##### ##??????? ????????????????? | | ? ##???????## ######?# ???????????????? | | ?????????????# ## ???????????????? | | ??????# ###### ??????????????? | | ??????# ??????????????? | | ??????# ###### % ??????????????? | | ???????????### [%??????????????? | | ???????????# ## # = ??????????????? | | ???????????# #####????????????????????? | | ???????????## ##?????????????????????? | | ????????????# * ##?#########??????????? | | ????????????# ###### ## #??????????? | | ????????????# ?????## #??????????? | | ????????????# ??????## ####?????????????? | | ????????????# ???????## ###????????????????? | | ????????????# ????????## #????????????????? | | ???????????? ????????# ##????????????????? | | ???????????? ????????# @ #????????????????? | | ??????????? ????????# s ?????????? | | ??????????? ?????????# s ?????? | | ?????????? ?????????? ## s ######??????? | | ?????????????????????? #??#### #???????????? | | ????????????????????? #???????? #??????????? | | ?????????????????????##?????????? #??????????? | | ?????????????????????????????????? #??????????? | | ???????????????????????????????????#??????????? | | ??????????????????????????????????????????????? | | ??????????????????????????????????????????????? | | ??????????????????????????????????????????????? | | ??????????????????????????????????????????????? | | ??????????????????????????????????????????????? | | ??????????????????????????????????????????????? | | ??????????????????????????????????????????????? | | ??????????????????????????????????????????????? | | ??????????????????????????????????????????????? | | ??????????????????????????????????????????????? | | ??????????????????????????????????????????????? | | ??????????????????????????????????????????????? | | ??????????????????????????????????????????????? | | ??????????????????????????????????????????????? | | ??????????????????????????????????????????????? | | ??????????????????????????????????????????????? | +----------------------------------------------------+ Best States ------------- Heat Dissipation 35 Energy Generation 14 Energy Capacity 265 Matter Stores 300 Matter Capacity 300 Sight Range 18 Terrain Scan Density 10 Armor Coverage 225 Evasion (%) 42 Targeting Accuracy 5 Recoil Reduction 2 Offensive Hacking 10 Item Schematics ----------------- Hacking Suite | -9/Materials | Scanalyzed Robot Schematics ------------------ None Fabricated ------------ Nothing Alien Tech Used ----------------- None Achievements -------------- Achiever Challenges ------------ None Game ------ Seed DisruptionBurstStorage Manual? 0 Play Time 01:56:13 Cumulative 196.6 hours Start 2020.11.17 @ 21:15:26 End 2020.11.18 @ 16:11:48 Sessions 11 Manual Loads 0 Difficulty Rogue Special Mode Halloween2020/ForbiddenLore Game No. 74 Rogue 74 Adventurer 0 Explorer 0 Win Type - Total 0 Types 0/0/0/0/0/0/0/0/0 Lore% 21 Gallery% 29 Achievement% 25 Wizard Run 0 Options --------- ASCII 0 Keyboard 1 Movement Vi Keybinds 0 Fullscreen 1 Font 12/Terminus Map View 83x54 Tactical HUD 1 Map Filters NONE Filters NONE Steam 1 RUN: 22478b18-6b71-4fef-a4c4-9d3a08fd338d